bitfinex/quotes_SOLUSD_20251030
["timestamp","ask_amount","ask_price","bid_price","bid_amount"]
[1761798412529,5.16508039,192.9,192.85,0.7]
[1761798412832,5.16508039,192.94,192.81,0.14216157]
[1761798413126,20.592,192.92,192.83,5.16508039]
[1761798413331,5.16508039,192.89,192.83,5.16508039]
[1761798413530,50.0,192.91,192.83,0.7]
[1761798413702,5.16508039,192.89,192.84,0.7]
[1761798413905,55.18377793,192.91,192.84,0.7]
[1761798414205,50.0,192.91,192.84,0.7]
[1761798414529,5.16508039,192.88,192.84,0.7]
[1761798414726,50.0,192.95,192.86,5.16508039]
[1761798415023,50.0,192.98,192.89,5.16508039]
[1761798415225,50.0,192.98,192.84,0.7]
[1761798415226,5.16508039,192.97,192.9,5.16508039]
[1761798415409,5.16508039,192.94,192.88,5.16508039]
[1761798415618,50.0,192.9,192.86,5.16508039]
[1761798415929,55.16508039,192.92,192.85,5.86508039]
[1761798416132,5.16508039,192.93,192.87,5.16508039]
[1761798416313,55.16508039,192.93,192.87,5.16508039]
[1761798416637,50.0,192.87,192.79,0.7]
[1761798416833,50.0,192.88,192.81,5.16508039]
[1761798417148,55.16508039,192.9,192.83,5.16508039]
[1761798417638,50.0,192.88,192.83,0.7]
[1761798417807,50.0,192.88,192.81,5.16508039]
[1761798418013,5.18430193,192.89,192.82,5.86508039]
[1761798418014,5.16508039,192.89,192.82,5.86508039]
[1761798418226,55.16508039,192.88,192.82,0.7]
[1761798418426,50.0,192.86,192.82,0.7]
[1761798418617,50.0,192.84,192.79,5.86508039]
[1761798418810,50.0,192.84,192.79,0.7]
[1761798419134,5.16508039,192.85,192.8,0.7]
[1761798419304,50.0,192.87,192.8,0.7]
[1761798419305,5.16508039,192.86,192.8,0.7]
[1761798419507,5.16508039,192.88,192.8,5.86508039]
[1761798419717,2.14216156,192.99,192.82,5.16508039]
[1761798419718,70.592,192.91,192.82,5.16508039]
[1761798419923,70.592,192.91,192.83,5.16508039]
[1761798420236,70.592,192.91,192.81,0.7]
[1761798420237,5.16508039,192.93,192.86,5.16508039]
[1761798420608,55.16508039,192.92,192.85,5.16508039]
[1761798420818,50.0,192.88,192.82,5.16508039]
[1761798421025,50.0,192.86,192.8,5.16508039]
[1761798421224,5.16508039,192.85,192.79,0.7]
[1761798421415,55.16508039,192.84,192.77,0.7]
[1761798421628,50.0,192.82,192.77,0.7]
[1761798421829,55.16508039,192.84,192.77,5.86508039]
[1761798422028,50.0,192.84,192.78,5.16508039]
[1761798422249,50.0,192.88,192.78,0.7]
[1761798422436,70.592,192.89,192.82,5.16508039]
[1761798422636,9.78882769,192.96,192.86,5.16508039]
[1761798422637,50.0,192.92,192.86,5.16508039]
[1761798422815,50.0,192.99,192.91,5.16508039]
[1761798423013,5.16508039,193.03,192.95,5.16508039]
[1761798423214,5.16508039,193.05,192.97,5.16508039]
[1761798423446,50.0,192.99,192.92,0.7]
[1761798423646,50.0,192.99,192.93,5.16508039]
[1761798423848,50.0,192.95,192.89,0.7]
[1761798424023,50.0,192.97,192.89,0.7]
[1761798424219,50.0,192.97,192.91,5.16508039]
[1761798424417,5.16508039,192.98,192.91,5.16508039]
[1761798424657,5.16508039,192.96,192.89,0.7]
[1761798424943,5.16508039,192.95,192.89,0.7]
[1761798425146,50.0,192.98,192.9,5.16508039]
[1761798425354,50.0,192.98,192.91,5.16508039]
[1761798425559,5.16508039,193.0,192.93,5.16508039]
[1761798425733,50.0,192.99,192.89,5.88428944]
[1761798425935,5.16508039,192.98,192.91,5.16508039]
[1761798426137,50.0,192.97,192.9,0.7]
[1761798426447,50.0,192.93,192.85,0.7]
[1761798426824,50.0,192.96,192.88,5.16508039]
[1761798427018,20.592,192.97,192.85,0.7]
[1761798427019,5.16508039,192.92,192.85,5.86508039]
[1761798427223,20.592,192.97,192.75,20.592]
[1761798427224,50.0,192.89,192.81,0.7]
[1761798427437,50.0,192.91,192.81,0.7]
[1761798427638,50.14216157,192.98,192.89,5.16508039]
[1761798427844,50.0,192.96,192.9,5.16508039]
[1761798428232,50.0,193.0,192.84,5.683645]
[1761798428233,100.0,193.02,192.91,5.16508039]
[1761798428433,50.0,193.0,192.94,5.16508039]
[1761798428630,50.0,193.0,192.91,0.7]
[1761798428631,5.16508039,193.0,192.92,5.16508039]
[1761798428937,55.18027176,193.05,192.95,5.16508039]
[1761798429136,5.16508039,193.03,192.96,5.16508039]
[1761798429335,55.18027176,193.05,192.95,5.86508039]
[1761798429567,5.16508039,193.03,192.96,5.16508039]
[1761798429850,55.16508039,193.0,192.9,0.7]
[1761798430063,55.16508039,193.0,192.82,1.99999999]
[1761798430064,5.16508039,192.96,192.78,1.99999999]
[1761798430227,5.16508039,192.96,192.72,5.68396789]
[1761798430228,70.592,193.03,192.94,5.16508039]
[1761798430432,5.16508039,193.01,192.94,5.16508039]
[1761798430634,70.592,193.04,192.96,5.16508039]
[1761798430839,25.75708039,193.04,192.97,5.16508039]
[1761798431035,25.75708039,193.04,192.95,0.7]
[1761798431036,5.16508039,193.0,192.87,0.51848395]
[1761798431242,20.592,193.04,192.89,0.7]
[1761798431243,5.16508039,192.97,192.89,0.7]
[1761798431471,55.16508039,192.96,192.89,5.86508039]
[1761798431749,50.0,192.96,192.89,5.86508039]
[1761798431929,5.16508039,192.95,192.89,0.7]
[1761798432127,55.16508039,192.92,192.85,0.7]
[1761798432357,50.0,192.92,192.85,0.7]
[1761798432561,5.16508039,192.92,192.85,5.86508039]
[1761798432731,5.16508039,192.93,192.86,5.16508039]
[1761798432929,50.0,192.99,192.86,1.23851083]
[1761798433256,50.0,192.99,192.91,5.16508039]
[1761798433553,50.0,192.99,192.87,0.72]
[1761798433554,55.16508039,192.97,192.87,0.72]
[1761798433753,50.0,192.97,192.89,5.16508039]
[1761798433939,50.0,192.97,192.87,0.72]
[1761798433940,55.16508039,192.95,192.87,0.72]
[1761798434258,55.16508039,192.95,192.83,0.5185915]
[1761798434259,5.16508039,192.91,192.86,6.75152801]
[1761798435056,50.14216157,192.97,192.87,5.88508039]
[1761798435364,5.16508039,192.9,192.86,6.75152801]
[1761798435575,5.16508039,192.87,192.86,6.75152801]
[1761798435755,50.0,192.89,192.86,6.75152801]
[1761798436057,55.18430492,192.89,192.86,6.75152801]
[1761798436257,75.75708039,192.87,192.86,6.75152801]
[1761798436553,65.09606965,192.87,192.86,6.75152801]
[1761798437429,65.09606965,192.87,192.72,0.72]
[1761798437430,50.0,192.79,192.72,0.72]
[1761798437645,55.16508039,192.79,192.72,5.88508039]
[1761798437843,5.16508039,192.78,192.72,0.72]
[1761798438053,5.16508039,192.75,192.68,0.72]
[1761798438254,50.0,192.76,192.68,0.72]
[1761798438561,55.16508039,192.74,192.68,0.72]
[1761798438735,5.16508039,192.73,192.68,0.72]
[1761798439068,50.0,192.74,192.68,0.72]
[1761798439271,5.16508039,192.69,192.58,11.02182769]
[1761798439444,5.16508039,192.68,192.6,5.16508039]
[1761798439832,50.0,192.65,192.59,5.88508039]
[1761798440032,55.16508039,192.67,192.59,5.88508039]
[1761798440262,50.0,192.65,192.59,0.72]
[1761798440459,5.16508039,192.64,192.58,0.513]
[1761798440674,50.0,192.6,192.58,0.513]
[1761798440834,5.16508039,192.59,192.58,0.513]
[1761798441033,25.75708039,192.59,192.58,0.513]
[1761798441235,5.16508039,192.59,192.58,0.513]
[1761798441434,25.75708039,192.52,192.51,850.1]
[1761798442036,95.905254,192.52,192.51,747.86756272]
[1761798442229,96.04741557,192.52,192.51,644.847884]
[1761798442440,80.92216078,192.52,192.51,554.16011123]
[1761798442745,85.83023122,192.52,192.51,554.16011123]
[1761798442933,50.14216157,192.52,192.51,554.16011123]
[1761798443137,5.30724196,192.52,192.51,554.16011123]
[1761798443445,50.0,192.55,192.51,554.16011123]
[1761798443755,5.16508039,192.52,192.51,554.16011123]
[1761798444063,55.66508039,192.52,192.51,485.58745828]
[1761798444268,105.80724196,192.52,192.51,485.58745828]
[1761798444785,122.9033116,192.52,192.51,196.29706561]
[1761798444934,109.78882769,192.47,192.46,1e-08]
[1761798445279,109.78882769,192.47,192.24,1.99999999]
[1761798445280,52.69148319,192.38,192.24,1.99999999]
[1761798445559,2.69148319,192.38,192.25,0.52015604]
[1761798445863,2.69148319,192.38,192.26,9.78882769]
[1761798446079,2.69148319,192.38,192.29,0.14216157]
[1761798446282,2.69148319,192.38,192.27,0.66]
[1761798446459,20.592,192.37,192.27,0.66]
[1761798446781,2.69148319,192.38,192.28,9.78882769]
[1761798447077,2.69148319,192.38,192.32,9.78882769]
[1761798447279,100.68,192.54,192.39,0.14216157]
[1761798447482,7.1908949,192.45,192.34,0.14216157]
[1761798447682,7.1908949,192.53,192.33,10.59098926]
[1761798447683,50.0,192.48,192.33,10.59098926]
[1761798447886,57.1908949,192.44,192.33,0.66]
[1761798448082,7.1908949,192.46,192.37,7.1908949]
[1761798448384,120.592,192.41,192.23,0.52021016]
[1761798448677,70.592,192.41,192.3,0.66]
[1761798448878,7.1908949,192.42,192.3,0.66]
[1761798449086,50.0,192.4,192.32,7.1908949]
[1761798449286,21.272,192.43,192.34,7.1908949]
[1761798449287,20.592,192.43,192.34,7.1908949]
[1761798449495,7.1908949,192.38,192.28,9.78882769]
[1761798449730,50.0,192.35,192.27,0.66]
[1761798449859,0.14216157,192.44,192.27,0.66]
[1761798449860,57.1908949,192.4,192.3,7.1908949]
[1761798450060,50.0,192.52,192.39,7.1908949]
[1761798450395,50.0,192.52,192.42,7.1908949]
[1761798450396,0.68,192.5,192.42,7.1908949]
[1761798450600,50.0,192.48,192.42,7.1908949]
[1761798450803,1.18,192.45,192.34,0.66]
[1761798451101,1.18,192.45,192.36,7.1908949]
[1761798451261,50.68,192.44,192.35,0.66]
[1761798451461,0.5,192.45,192.4,7.1908949]
[1761798451659,0.5,192.45,192.44,7.1908949]
[1761798451967,0.5,192.45,192.36,0.66]
[1761798452292,50.0,192.41,192.33,0.66]
[1761798452487,50.0,192.37,192.3,9.78882769]
[1761798452690,50.0,192.37,192.28,0.52007489]
[1761798452691,50.0,192.35,192.28,9.78882769]
[1761798452863,50.0,192.37,192.28,0.66]
[1761798453184,70.592,192.41,192.28,0.66]
[1761798453185,0.5,192.45,192.36,7.1908949]
[1761798453386,0.5,192.45,192.37,9.78882769]
[1761798453593,0.5,192.45,192.37,0.66]
[1761798453798,0.5,192.45,192.43,7.1908949]
[1761798454106,50.0,192.49,192.39,9.78882769]
[1761798454289,50.0,192.43,192.34,0.66]
[1761798454480,50.0,192.43,192.36,7.1908949]
[1761798454676,50.0,192.47,192.4,7.1908949]
[1761798454886,50.0,192.46,192.35,9.78882769]
[1761798455101,20.592,192.48,192.43,7.1908949]
[1761798455283,0.68,192.51,192.43,7.1908949]
[1761798455284,50.68,192.51,192.43,7.1908949]
[1761798455481,50.0,192.51,192.43,0.66]
[1761798455700,50.0,192.49,192.37,0.66]
[1761798455877,50.0,192.52,192.45,7.1908949]
[1761798456197,50.68,192.54,192.47,7.1908949]
[1761798456573,50.68,192.53,192.46,7.1908949]
[1761798456991,50.0,192.51,192.42,0.66]
[1761798457189,50.0,192.5,192.44,7.1908949]
[1761798457392,50.0,192.52,192.39,0.6619391]
[1761798457599,20.592,192.53,192.39,0.66]
[1761798457600,50.0,192.48,192.39,0.66]
[1761798457901,50.0,192.44,192.35,0.66]
[1761798458075,0.68,192.47,192.3,0.5200208]
[1761798458076,50.0,192.41,192.3,0.5200208]
[1761798458275,50.0,192.38,192.32,7.1908949]
[1761798458470,50.0,192.33,192.26,0.66]
[1761798458690,50.0,192.33,192.2,0.52029136]
[1761798458905,50.0,192.33,192.3,7.1908949]
[1761798459079,20.592,192.39,192.32,7.1908949]
[1761798459279,20.592,192.39,192.34,7.1908949]
[1761798459576,0.68,192.45,192.38,7.1908949]
[1761798459779,50.0,192.43,192.31,0.28432314]
[1761798460017,0.68,192.45,192.39,7.1908949]
[1761798460219,50.0,192.42,192.32,0.66]
[1761798460389,50.0,192.4,192.33,7.1908949]
[1761798460704,7.1908949,192.41,192.3,0.66]
[1761798460916,50.0,192.41,192.29,0.66]
[1761798461089,50.0,192.43,192.32,9.78882769]
[1761798461296,50.0,192.41,192.34,7.1908949]
[1761798461675,0.14216157,192.48,192.31,0.66]
[1761798461676,100.68,192.46,192.32,9.78882769]
[1761798461876,107.8708949,192.46,192.34,0.66]
[1761798462077,50.0,192.4,192.29,0.66]
[1761798462275,50.0,192.4,192.34,7.1908949]
[1761798462590,50.0,192.33,192.27,7.1908949]
[1761798462908,57.1908949,192.31,192.23,7.1908949]
[1761798463104,57.1908949,192.31,192.19,1.18031843]
[1761798463303,7.1908949,192.4,192.19,1.18031843]
[1761798463304,50.0,192.28,192.19,0.66]
[1761798463507,50.0,192.26,192.16,0.66]
[1761798463806,50.0,192.26,192.19,7.1908949]
[1761798463988,50.0,192.26,192.2,7.1908949]
[1761798464195,50.0,192.31,192.16,0.66]
[1761798464196,50.0,192.3,192.17,9.78882769]
[1761798464384,50.0,192.26,192.14,0.66]
[1761798464590,50.0,192.26,192.07,0.1]
[1761798464591,57.1908949,192.2,192.09,0.66]
[1761798464895,7.1908949,192.15,192.08,7.1908949]
[1761798465101,0.68,192.16,192.07,0.1]
[1761798465289,50.0,192.13,192.07,0.1]
[1761798465484,50.0,192.11,192.07,0.1]
[1761798465797,71.272,192.13,192.07,0.1]
[1761798466126,7.1908949,192.11,192.07,0.1]
[1761798466281,70.592,192.08,192.06,6.59908788]
[1761798466481,120.592,192.08,192.06,6.59908788]
[1761798466703,7.1908949,192.07,192.06,6.59908788]
[1761798466882,7.1908949,192.08,192.06,6.59908788]
[1761798467091,7.1908949,192.07,192.06,6.59908788]
[1761798467282,57.1908949,192.07,192.06,6.59908788]
[1761798467586,107.1908949,192.07,192.06,6.59908788]
[1761798467783,100.0,192.09,192.06,6.59908788]
[1761798468016,50.0,192.11,192.06,6.59908788]
[1761798468312,50.0,192.07,192.06,6.59908788]
[1761798468514,107.1908949,192.07,192.06,6.59908788]
[1761798468695,50.0,192.07,192.06,6.59908788]
[1761798468896,57.1908949,192.07,192.06,6.59908788]
[1761798469298,1.99999999,192.15,192.06,6.59908788]
[1761798469299,50.0,192.09,192.06,6.59908788]
[1761798469618,7.1908949,192.11,192.06,6.59908788]
[1761798469785,0.5,192.07,192.06,6.59908788]
[1761798469991,7.6908949,192.07,192.06,6.59908788]
[1761798470397,78.2828949,192.07,192.06,6.59908788]
[1761798470704,50.5,192.07,192.06,6.59908788]
[1761798470893,0.5,192.07,192.06,7.25908788]
[1761798471310,50.0,192.12,192.06,7.25908788]
[1761798471516,7.1908949,192.12,192.06,14.44998278]
[1761798471691,50.0,192.16,192.08,7.1908949]
[1761798471893,7.1908949,192.09,192.06,6.59908788]
[1761798472194,50.0,192.13,192.06,13.78998278]
[1761798472393,7.1908949,192.13,192.06,13.78998278]
[1761798472599,7.1908949,192.13,192.06,6.59908788]
[1761798472600,57.1908949,192.1,192.06,6.59908788]
[1761798472803,50.0,192.14,192.07,7.9008949]
[1761798473000,50.0,192.18,192.07,0.71]
[1761798473001,7.1908949,192.15,192.07,0.71]
[1761798473218,50.0,192.1,192.06,13.78998278]
[1761798473423,50.0,192.12,192.06,7.30908788]
[1761798473601,50.0,192.1,192.06,6.59908788]
[1761798473790,50.0,192.12,192.06,13.78998278]
[1761798474007,57.1908949,192.12,192.06,13.78998278]
[1761798474214,50.0,192.07,192.06,6.59908788]
[1761798474398,7.1908949,192.1,192.06,6.59908788]
[1761798474596,50.0,192.12,192.06,13.78998278]
[1761798474798,70.592,192.15,192.06,13.78998278]
[1761798474799,20.592,192.14,192.07,0.71]
[1761798474996,50.0,192.13,192.06,6.59908788]
[1761798475221,50.0,192.17,192.06,6.59908788]
[1761798475222,50.0,192.09,192.06,6.59908788]
[1761798475396,70.592,192.07,192.06,6.59908788]
[1761798475597,127.92505647,192.07,192.06,6.59908788]
[1761798476393,127.7828949,192.07,192.06,6.59908788]
[1761798476801,77.7828949,192.07,192.06,6.59908788]
[1761798477017,100.0,192.07,192.06,6.59908788]
[1761798477230,9.93098926,192.15,192.06,6.59908788]
[1761798477231,50.0,192.11,192.06,6.59908788]
[1761798477521,50.0,192.08,192.06,6.59908788]
[1761798477698,57.1908949,192.08,192.06,6.59908788]
[1761798477900,57.1908949,192.07,192.06,6.59908788]
[1761798478105,57.1908949,192.09,192.06,6.59908788]
[1761798478413,50.0,192.08,192.06,6.59908788]
[1761798478613,50.0,192.13,192.06,6.59908788]
[1761798478614,50.0,192.1,192.06,6.59908788]
[1761798478827,7.20813104,192.34,192.07,0.71]
[1761798478997,50.0,192.14,192.07,0.71]
[1761798479202,50.0,192.13,192.06,14.49998278]
[1761798479415,50.0,192.13,192.06,7.30908788]
[1761798479615,7.1908949,192.09,192.06,6.59908788]
[1761798479817,50.0,192.09,192.06,6.59908788]
[1761798479997,57.1908949,192.11,192.06,7.30908788]
[1761798480195,7.1908949,192.07,192.06,6.59908788]
[1761798480399,119.26404572,192.07,192.06,6.59908788]
[1761798480595,110.07315083,192.07,192.06,6.59908788]
[1761798480811,117.26404573,192.07,192.06,6.59908788]
[1761798481027,107.1908949,192.07,192.06,6.59908788]
[1761798481224,109.78882769,192.07,192.06,6.59908788]
[1761798481411,127.7828949,192.07,192.06,6.59908788]
[1761798481609,100.0,192.07,192.06,6.59908788]
[1761798482015,57.1908949,192.1,192.06,7.30908788]
[1761798482320,50.0,192.11,192.06,7.30908788]
[1761798482526,7.1908949,192.11,192.06,6.59908788]
[1761798482725,50.0,192.1,192.07,0.71]
[1761798482926,7.1908949,192.13,192.07,0.71]
[1761798483109,50.0,192.15,192.09,7.1908949]
[1761798483434,50.0,192.15,192.07,0.71]
[1761798483435,100.0,192.21,192.07,1.37280508]
[1761798483634,12.99856873,192.33,192.07,1.37280508]
[1761798483635,50.0,192.18,192.07,1.37280508]
[1761798483861,50.0,192.16,192.12,7.1908949]
[1761798484153,50.0,192.25,192.1,0.14216157]
[1761798484350,7.1908949,192.12,192.06,6.59908788]
[1761798484513,57.1908949,192.07,192.06,6.59908788]
[1761798484711,50.0,192.07,192.06,6.59908788]
[1761798485138,70.592,192.1,192.06,6.59908788]
[1761798485527,50.0,192.13,192.07,0.71]
[1761798485714,50.0,192.19,192.07,0.85216157]
[1761798485920,7.1908949,192.2,192.06,16.90858619]
[1761798486148,50.0,192.11,192.06,6.59908788]
[1761798486316,50.0,192.07,192.06,7.30908788]
[1761798486514,0.14216157,192.14,192.06,7.30908788]
[1761798486515,50.0,192.13,192.06,7.30908788]
[1761798486760,50.0,192.1,192.06,7.30908788]
[1761798486917,50.0,192.12,192.06,7.30908788]
[1761798487289,50.0,192.14,192.07,0.71]
[1761798487412,27.7828949,192.15,192.07,0.71]
[1761798487610,7.1908949,192.17,192.09,7.1908949]
[1761798487819,50.0,192.14,192.07,0.71]
[1761798488133,50.0,192.18,192.09,7.1908949]
[1761798488437,50.0,192.18,192.07,0.85216157]
[1761798488438,50.0,192.16,192.07,1.37280508]
[1761798488619,7.1908949,192.18,192.1,7.1908949]
[1761798488825,7.1908949,192.16,192.08,7.9008949]
[1761798489340,50.0,192.21,192.12,7.1908949]
[1761798489533,7.1908949,192.19,192.09,0.71]
[1761798489851,50.0,192.15,192.07,0.71]
[1761798490014,57.1908949,192.12,192.06,6.59908788]
[1761798490217,57.1908949,192.07,192.06,6.59908788]
[1761798490511,107.1908949,192.07,192.06,6.59908788]
[1761798490718,118.97972258,192.07,192.06,6.59908788]
[1761798490915,100.14216157,192.07,192.06,6.59908788]
[1761798491114,100.0,192.07,192.06,6.59908788]
[1761798491347,116.97972259,192.07,192.06,6.59908788]
[1761798491512,117.12188416,192.07,192.06,6.59908788]
[1761798491711,100.0,192.07,192.06,6.59908788]
[1761798491911,107.1908949,192.07,192.06,6.59908788]
[1761798492140,100.0,192.07,192.06,6.59908788]
[1761798492361,116.97972259,192.07,192.06,6.59908788]
[1761798492515,117.12188416,192.07,192.06,6.59908788]
[1761798492715,117.26404573,192.07,192.06,6.59908788]
[1761798493110,120.592,192.01,192.0,2.0]
[1761798493311,124.45494063,192.01,192.0,2.0]
[1761798493534,124.31277906,192.01,192.0,2.0]
[1761798493848,100.0,192.01,192.0,2.0]
[1761798494343,27.7828949,192.01,192.0,2.0]
[1761798494561,44.76261749,192.01,192.0,2.0]
[1761798494862,44.90477906,192.01,192.0,2.0]
[1761798495052,27.7828949,192.01,192.0,2.0]
[1761798495842,20.592,192.01,192.0,2.0]
[1761798496080,50.0,192.01,192.0,2.0]
[1761798496251,7.8908949,192.01,192.0,2.0]
[1761798496458,50.0,192.02,192.0,2.0]
[1761798496636,57.1908949,192.01,192.0,2.0]
[1761798496840,74.17061749,192.01,192.0,2.0]
[1761798497061,50.0,192.02,192.0,2.0]
[1761798497245,7.1908949,192.02,192.0,2.0]
[1761798497562,50.0,192.05,192.0,2.0]
[1761798497563,50.0,192.05,192.01,0.71]
[1761798497763,50.0,192.02,192.0,2.0]
[1761798497938,50.0,192.01,192.0,2.0]
[1761798498139,57.1908949,192.01,192.0,2.0]
[1761798498866,50.0,192.01,192.0,2.0]
[1761798499070,7.1908949,192.01,192.0,2.0]
[1761798499259,120.592,192.01,192.0,2.0]
[1761798499580,124.17061749,192.01,192.0,2.0]
[1761798499796,124.31277906,192.01,191.86,0.1]
[1761798499979,50.0,191.89,191.87,0.71]
[1761798500288,50.0,191.93,191.87,0.71]
[1761798500576,50.0,191.85,191.78,0.31]
[1761798500780,50.0,191.87,191.78,0.31]
[1761798500963,50.0,191.83,191.78,0.31]
[1761798501146,0.7,191.84,191.78,0.31]
[1761798501346,50.0,191.86,191.79,7.1908949]
[1761798501682,70.592,191.91,191.78,0.31]
[1761798501854,7.1908949,191.88,191.78,0.31]
[1761798502050,70.592,191.88,191.78,0.31]
[1761798502311,7.1908949,191.83,191.78,0.31]
[1761798502502,50.0,191.82,191.78,0.31]
[1761798502719,7.1908949,191.83,191.78,0.31]
[1761798502889,50.0,191.82,191.78,0.31]
[1761798503077,7.1908949,191.82,191.78,0.31]
[1761798503421,7.1908949,191.8,191.78,0.31]
[1761798503725,50.0,191.82,191.74,0.71]
[1761798503875,7.1908949,191.75,191.7,0.5216484]
[1761798504211,50.0,191.74,191.67,0.71]
[1761798504380,7.1908949,191.68,191.66,8.0303565]
[1761798504705,50.0,191.68,191.67,0.71]
[1761798504921,7.1908949,191.68,191.66,8.0303565]
[1761798505208,50.0,191.75,191.67,0.71]
[1761798505498,50.0,191.69,191.67,0.71]
[1761798505698,50.0,191.71,191.68,7.1908949]
[1761798505909,65.56115544,192.01,191.7,7.1908949]
[1761798505910,50.0,191.79,191.7,7.1908949]
[1761798506090,50.0,191.79,191.69,21.312]
[1761798506091,7.1908949,191.79,191.69,21.312]
[1761798506275,0.72,191.83,191.7,1.2416484]
[1761798506501,50.72,191.89,191.72,0.14216157]
[1761798506708,50.0,191.85,191.75,1.99999999]
[1761798506914,50.0,191.8,191.76,1.99999999]
[1761798507206,2.72578398,192.01,191.85,1.99999999]
[1761798507207,50.0,191.92,191.85,1.99999999]
[1761798507414,50.0,191.96,191.87,1.99999999]
[1761798507697,50.0,192.0,191.87,1.99999999]
[1761798507698,50.0,192.0,191.92,7.99463317]
[1761798507898,50.0,192.05,191.95,7.99463317]
[1761798508101,7.99463317,192.0,191.93,8.71463317]
[1761798508293,0.72,192.04,191.93,0.14216157]
[1761798508470,0.8,191.99,191.94,0.52099614]
[1761798508669,0.8,191.99,191.86,0.72]
[1761798508996,20.592,191.95,191.82,0.72]
[1761798509172,50.0,191.91,191.83,7.99463317]
[1761798509498,0.72,191.98,191.82,0.72]
[1761798509499,50.0,191.93,191.84,7.99463317]
[1761798509676,100.0,191.97,191.9,7.99463317]
[1761798509878,0.8,191.99,191.92,7.99463317]
[1761798510081,0.8,191.99,191.93,7.99463317]
[1761798510404,0.8,191.99,191.87,20.592]
[1761798510405,7.99463317,191.99,191.87,20.592]
[1761798510611,7.99463317,191.93,191.84,0.72]
[1761798510780,50.0,191.97,191.86,7.99463317]
[1761798511077,50.0,191.93,191.85,0.72]
[1761798511280,7.99463317,191.9,191.8,9.78882769]
[1761798511598,50.0,191.89,191.81,0.72]
[1761798511784,57.99463317,191.87,191.74,18.25388546]
[1761798512104,7.99463317,191.85,191.77,8.71463317]
[1761798512275,50.0,191.89,191.77,8.71463317]
[1761798512276,7.99463317,191.87,191.79,7.99463317]
[1761798512476,50.0,191.89,191.79,7.99463317]
[1761798512678,7.99463317,191.88,191.8,1.24137643]
[1761798512910,7.99463317,191.81,191.67,0.52173005]
[1761798513119,0.72,191.9,191.7,0.72]
[1761798513120,50.0,191.79,191.7,0.72]
[1761798513329,50.0,191.81,191.77,7.99463317]
[1761798513497,0.72,191.89,191.77,7.99463317]
[1761798513498,57.99463317,191.87,191.77,7.99463317]
[1761798513809,7.99463317,191.83,191.76,20.592]
[1761798513978,50.0,191.85,191.76,20.592]
[1761798514178,50.0,191.83,191.76,0.72]
[1761798514493,50.0,191.83,191.7,0.5216484]
[1761798514494,50.0,191.83,191.73,8.71463317]
[1761798514682,50.0,191.86,191.77,0.72]
[1761798515018,50.0,191.78,191.71,0.72]
[1761798515178,50.0,191.79,191.74,0.72]
[1761798515379,50.0,191.9,191.78,20.592]
[1761798515598,50.0,191.9,191.8,7.99463317]
[1761798515806,7.99463317,191.89,191.8,8.71463317]
[1761798515979,100.0,191.95,191.81,0.72]
[1761798516179,7.99463317,191.93,191.85,7.99463317]
[1761798516384,100.0,191.95,191.85,7.99463317]
[1761798516610,100.0,191.99,191.87,7.99463317]
[1761798516816,7.99463317,191.97,191.89,0.14216157]
[1761798517106,7.99463317,191.97,191.84,30.38082769]
[1761798517107,57.99463317,191.93,191.83,0.72]
[1761798517289,50.0,191.86,191.79,7.99463317]
[1761798517482,50.0,191.92,191.83,7.99463317]
[1761798517682,7.99463317,191.93,191.85,7.99463317]
[1761798517884,0.9,191.98,191.91,7.99463317]
[1761798518097,50.72,192.04,191.95,7.99463317]